[Event "*** Titled Tuesday Blitz"]
[Site "Chess.com"]
[Date "2020.04.28"]
[Round "3"]
[White "Vaathi_Coming"]
[Black "Pavlov_Sergey"]
[Result "1-0"]
[WhiteElo "2870"]
[BlackElo "2634"]
[TimeControl "180+1"]
[EndTime "10:30:42 PDT"]
[Termination "Vaathi_Coming won by resignation"]

1. c4 {[%clk 0:03:00.9]} 1... e6 {[%clk 0:02:58.2]} 2. d4 {[%clk 0:03:00.5]}
2... Nf6 {[%clk 0:02:57.3]} 3. Nf3 {[%clk 0:02:59.1]} 3... d5 {[%clk 0:02:56.2]}
4. Bg5 {[%clk 0:02:59.3]} 4... dxc4 {[%clk 0:02:54.5]} 5. Nc3 {[%clk 0:02:57.8]}
5... c5 {[%clk 0:02:52.9]} 6. e4 {[%clk 0:02:54.4]} 6... cxd4 {[%clk 0:02:46.6]}
7. Nxd4 {[%clk 0:02:55.3]} 7... Bc5 {[%clk 0:02:26.3]} 8. Be3 {[%clk 0:02:35.2]}
8... O-O {[%clk 0:01:59]} 9. Bxc4 {[%clk 0:02:17.6]} 9... Nbd7 {[%clk
0:01:36.6]} 10. O-O {[%clk 0:02:07.2]} 10... a6 {[%clk 0:01:36.8]} 11. a4 {[%clk
0:01:43.3]} 11... b6 {[%clk 0:01:31.6]} 12. f4 {[%clk 0:01:20.7]} 12... Bb7
{[%clk 0:01:29.9]} 13. e5 {[%clk 0:01:19.2]} 13... Ne4 {[%clk 0:01:25.3]} 14.
Nxe4 {[%clk 0:00:48]} 14... Bxe4 {[%clk 0:01:24.5]} 15. Kh1 {[%clk 0:00:44]}
15... Qe7 {[%clk 0:01:06.8]} 16. Qe2 {[%clk 0:00:41]} 16... Bb7 {[%clk
0:01:00.9]} 17. Rad1 {[%clk 0:00:30.5]} 17... Rfd8 {[%clk 0:01:00.4]} 18. Rd2
{[%clk 0:00:19.3]} 18... Nf8 {[%clk 0:00:52.7]} 19. Rfd1 {[%clk 0:00:19.4]}
19... Rd7 {[%clk 0:00:47.6]} 20. Kg1 {[%clk 0:00:14]} 20... Bb4 {[%clk
0:00:40.1]} 21. Rd3 {[%clk 0:00:08.9]} 21... Be4 {[%clk 0:00:38.4]} 22. Rb3
{[%clk 0:00:08.9]} 22... a5 {[%clk 0:00:38.7]} 23. Bd3 {[%clk 0:00:06.5]} 23...
Bxd3 {[%clk 0:00:23.7]} 24. Rbxd3 {[%clk 0:00:07.4]} 24... Rc8 {[%clk
0:00:23.8]} 25. Nb5 {[%clk 0:00:05.2]} 25... Rxd3 {[%clk 0:00:21.5]} 26. Qxd3
{[%clk 0:00:06.1]} 26... Bc5 {[%clk 0:00:20.3]} 27. Nd6 {[%clk 0:00:05.3]} 27...
Bxe3+ {[%clk 0:00:19.2]} 28. Qxe3 {[%clk 0:00:05.2]} 28... Rc5 {[%clk
0:00:19.7]} 29. g3 {[%clk 0:00:04]} 29... h6 {[%clk 0:00:18.8]} 30. Rc1 {[%clk
0:00:04.1]} 30... Nd7 {[%clk 0:00:17.9]} 31. Rc3 {[%clk 0:00:03.1]} 31... Rxc3
{[%clk 0:00:17.2]} 32. Qxc3 {[%clk 0:00:04]} 32... Nc5 {[%clk 0:00:17]} 33. Qc4
{[%clk 0:00:04.3]} 33... Qd7 {[%clk 0:00:16.5]} 34. b3 {[%clk 0:00:03.9]} 34...
Qc6 {[%clk 0:00:15.9]} 35. Kf2 {[%clk 0:00:03.8]} 35... Qh1 {[%clk 0:00:12]} 36.
h4 {[%clk 0:00:02.4]} 36... Qh2+ {[%clk 0:00:11.9]} 37. Kf3 {[%clk 0:00:03]}
37... Qh1+ {[%clk 0:00:12.2]} 38. Kf2 {[%clk 0:00:03.4]} 38... Qh2+ {[%clk
0:00:12.5]} 39. Kf3 {[%clk 0:00:03.6]} 39... Qh1+ {[%clk 0:00:12.7]} 40. Kg4
{[%clk 0:00:01.8]} 40... Qd1+ {[%clk 0:00:11.8]} 41. Kh3 {[%clk 0:00:02.3]}
41... Qxb3 {[%clk 0:00:10.6]} 42. Qxb3 {[%clk 0:00:01.5]} 42... Nxb3 {[%clk
0:00:10.7]} 43. Nc4 {[%clk 0:00:02.2]} 43... Nc5 {[%clk 0:00:06.5]} 44. Nxb6
{[%clk 0:00:02.4]} 44... Kf8 {[%clk 0:00:07]} 45. Nc4 {[%clk 0:00:02.5]} 45...
Nxa4 {[%clk 0:00:06.2]} 46. Nxa5 {[%clk 0:00:02.9]} 46... Nc3 {[%clk 0:00:06.5]}
47. Nc4 {[%clk 0:00:03.2]} 47... Ne4 {[%clk 0:00:06.4]} 48. h5 {[%clk
0:00:03.5]} 48... g6 {[%clk 0:00:05.6]} 49. hxg6 {[%clk 0:00:03.6]} 49... fxg6
{[%clk 0:00:06]} 50. Kg4 {[%clk 0:00:03.8]} 50... Kf7 {[%clk 0:00:04.9]} 51. Kf3
{[%clk 0:00:04]} 51... Nc5 {[%clk 0:00:04.2]} 52. Nd6+ {[%clk 0:00:04.3]} 52...
Ke7 {[%clk 0:00:04.7]} 53. Nc8+ {[%clk 0:00:04.3]} 53... Kf7 {[%clk 0:00:04.3]}
54. Nd6+ {[%clk 0:00:05.2]} 54... Ke7 {[%clk 0:00:04.7]} 55. Nb5 {[%clk
0:00:05.6]} 55... Nd7 {[%clk 0:00:04.1]} 56. Nd4 {[%clk 0:00:05.7]} 56... Nb6
{[%clk 0:00:04.1]} 57. Nc6+ {[%clk 0:00:06]} 57... Kf7 {[%clk 0:00:04.3]} 58.
Nd8+ {[%clk 0:00:06]} 58... Ke7 {[%clk 0:00:03.9]} 59. Nc6+ {[%clk 0:00:06.9]}
59... Kf7 {[%clk 0:00:03.9]} 60. Ke4 {[%clk 0:00:05.9]} 60... Nd5 {[%clk
0:00:03.4]} 61. Kd4 {[%clk 0:00:05.5]} 61... g5 {[%clk 0:00:03.1]} 62. Ke4
{[%clk 0:00:05.2]} 62... gxf4 {[%clk 0:00:02.7]} 63. gxf4 {[%clk 0:00:06.1]}
63... Ne7 {[%clk 0:00:03]} 64. Nd8+ {[%clk 0:00:05.9]} 64... Kg6 {[%clk
0:00:01.7]} 65. Nxe6 {[%clk 0:00:06.8]} 65... Nf5 {[%clk 0:00:01.9]} 66. Nf8+
{[%clk 0:00:06.7]} 66... Kf7 {[%clk 0:00:02.3]} 67. Kxf5 {[%clk 0:00:07.3]}
67... Kxf8 {[%clk 0:00:02.5]} 68. Kg6 {[%clk 0:00:07.8]} 1-0

[Event "*** Titled Tuesday Blitz"]
[Site "Chess.com"]
[Date "2020.04.28"]
[Round "3"]
[White "DACF2905"]
[Black "vanyakuba"]
[Result "1/2-1/2"]
[WhiteElo "2188"]
[BlackElo "2405"]
[TimeControl "180+1"]
[EndTime "10:30:43 PDT"]
[Termination "Game drawn - insufficient material"]

1. d4 {[%clk 0:03:00.9]} 1... d5 {[%clk 0:02:59.9]} 2. c4 {[%clk 0:03:00.5]}
2... e6 {[%clk 0:02:59.9]} 3. Nc3 {[%clk 0:02:59.6]} 3... c5 {[%clk 0:03:00]} 4.
cxd5 {[%clk 0:02:57]} 4... cxd4 {[%clk 0:02:59.9]} 5. Qxd4 {[%clk 0:02:55.5]}
5... Nc6 {[%clk 0:02:59.6]} 6. Qa4 {[%clk 0:02:47.9]} 6... exd5 {[%clk
0:02:59.4]} 7. e3 {[%clk 0:02:46.6]} 7... Nf6 {[%clk 0:02:58.3]} 8. Nf3 {[%clk
0:02:46.2]} 8... Bd6 {[%clk 0:02:54]} 9. Bd3 {[%clk 0:02:42.9]} 9... Bg4 {[%clk
0:02:51.5]} 10. Nd4 {[%clk 0:02:37.5]} 10... O-O {[%clk 0:02:49.4]} 11. Nxc6
{[%clk 0:02:35.1]} 11... bxc6 {[%clk 0:02:49.3]} 12. Qxc6 {[%clk 0:02:33.7]}
12... d4 {[%clk 0:02:33.2]} 13. exd4 {[%clk 0:02:32.8]} 13... Re8+ {[%clk
0:02:32.9]} 14. Be3 {[%clk 0:02:32]} 14... Rc8 {[%clk 0:02:29.3]} 15. Qa4 {[%clk
0:02:22.3]} 15... Bf4 {[%clk 0:02:11.2]} 16. O-O {[%clk 0:02:10.8]} 16... Bxe3
{[%clk 0:02:05.8]} 17. fxe3 {[%clk 0:02:10.3]} 17... Rxe3 {[%clk 0:02:06.7]} 18.
Ba6 {[%clk 0:01:43.7]} 18... Rb8 {[%clk 0:01:59.3]} 19. Rae1 {[%clk 0:01:26.6]}
19... Qe7 {[%clk 0:01:38.3]} 20. Rb1 {[%clk 0:00:53.2]} 20... Rb4 {[%clk
0:01:04.5]} 21. Qa3 {[%clk 0:00:50.6]} 21... Rxd4 {[%clk 0:01:02.5]} 22. Qxe7
{[%clk 0:00:49]} 22... Rxe7 {[%clk 0:01:03.4]} 23. h3 {[%clk 0:00:46.4]} 23...
Bd7 {[%clk 0:00:59.7]} 24. Rfd1 {[%clk 0:00:44.8]} 24... Rb4 {[%clk 0:00:53.6]}
25. Nd5 {[%clk 0:00:36.1]} 25... Nxd5 {[%clk 0:00:53.2]} 26. Rxd5 {[%clk
0:00:36.1]} 26... g6 {[%clk 0:00:52]} 27. b3 {[%clk 0:00:35.7]} 27... Kg7 {[%clk
0:00:44.3]} 28. Rc1 {[%clk 0:00:34.6]} 28... Bf5 {[%clk 0:00:41.6]} 29. Rdc5
{[%clk 0:00:31.4]} 29... Rbe4 {[%clk 0:00:34.2]} 30. Kf2 {[%clk 0:00:25]} 30...
h5 {[%clk 0:00:31.6]} 31. Rc7 {[%clk 0:00:24.1]} 31... Kf6 {[%clk 0:00:30.3]}
32. Rxe7 {[%clk 0:00:20.8]} 32... Rxe7 {[%clk 0:00:29.8]} 33. Rc6+ {[%clk
0:00:20.5]} 33... Ke5 {[%clk 0:00:28.7]} 34. Rc3 {[%clk 0:00:20.1]} 34... Kd4
{[%clk 0:00:26.5]} 35. Rc4+ {[%clk 0:00:19.6]} 35... Kd5 {[%clk 0:00:25.9]} 36.
Rc3 {[%clk 0:00:19.9]} 36... Be4 {[%clk 0:00:20.6]} 37. Re3 {[%clk 0:00:19.7]}
37... f5 {[%clk 0:00:19.9]} 38. Bc4+ {[%clk 0:00:19.7]} 38... Kd4 {[%clk
0:00:20]} 39. Re1 {[%clk 0:00:19.8]} 39... g5 {[%clk 0:00:18.5]} 40. g3 {[%clk
0:00:19.3]} 40... h4 {[%clk 0:00:17.5]} 41. gxh4 {[%clk 0:00:18.7]} 41... gxh4
{[%clk 0:00:18.4]} 42. Rd1+ {[%clk 0:00:18.2]} 42... Kc3 {[%clk 0:00:16.6]} 43.
Rg1 {[%clk 0:00:18]} 43... Kb2 {[%clk 0:00:16]} 44. a4 {[%clk 0:00:18.1]} 44...
Bc2 {[%clk 0:00:14]} 45. Rg5 {[%clk 0:00:08.4]} 45... a5 {[%clk 0:00:08.3]} 46.
Rh5 {[%clk 0:00:07.5]} 46... Bxb3 {[%clk 0:00:07.9]} 47. Bxb3 {[%clk 0:00:07.7]}
47... Kxb3 {[%clk 0:00:08.7]} 48. Rxf5 {[%clk 0:00:07.9]} 48... Kxa4 {[%clk
0:00:06.7]} 49. Rf4+ {[%clk 0:00:08.1]} 49... Kb3 {[%clk 0:00:07]} 50. Rxh4
{[%clk 0:00:08.3]} 50... a4 {[%clk 0:00:07.5]} 51. Rh6 {[%clk 0:00:07.5]} 51...
Rb7 {[%clk 0:00:06.5]} 52. Ra6 {[%clk 0:00:07.2]} 52... a3 {[%clk 0:00:06.7]}
53. h4 {[%clk 0:00:07.5]} 53... a2 {[%clk 0:00:07.1]} 54. Kg3 {[%clk 0:00:07.4]}
54... Kb2 {[%clk 0:00:07.3]} 55. Kg4 {[%clk 0:00:06.8]} 55... a1=Q {[%clk
0:00:05.7]} 56. Rxa1 {[%clk 0:00:06.2]} 56... Kxa1 {[%clk 0:00:06.6]} 57. Kg5
{[%clk 0:00:06.6]} 57... Kb1 {[%clk 0:00:07.5]} 58. h5 {[%clk 0:00:07]} 58...
Kc2 {[%clk 0:00:08.4]} 59. Kg6 {[%clk 0:00:07.6]} 59... Kd3 {[%clk 0:00:09.3]}
60. h6 {[%clk 0:00:08.5]} 60... Ke4 {[%clk 0:00:09.9]} 61. h7 {[%clk 0:00:08.9]}
61... Rb8 {[%clk 0:00:09.5]} 62. Kg7 {[%clk 0:00:09]} 62... Rb7+ {[%clk
0:00:07.6]} 63. Kg8 {[%clk 0:00:09.1]} 63... Rb8+ {[%clk 0:00:07.9]} 64. Kg7
{[%clk 0:00:08.9]} 64... Kf5 {[%clk 0:00:08.5]} 65. h8=Q {[%clk 0:00:08.2]}
65... Rxh8 {[%clk 0:00:08]} 66. Kxh8 {[%clk 0:00:08.4]} 1/2-1/2

[Event "*** Titled Tuesday Blitz"]
[Site "Chess.com"]
[Date "2020.04.28"]
[Round "3"]
[White "TerorPtica"]
[Black "WoolworthsManly"]
[Result "1-0"]
[WhiteElo "2977"]
[BlackElo "2654"]
[TimeControl "180+1"]
[EndTime "10:30:45 PDT"]
[Termination "TerorPtica won by resignation"]

1. d4 {[%clk 0:03:00.9]} 1... d5 {[%clk 0:02:59.6]} 2. c4 {[%clk 0:02:59.7]}
2... c6 {[%clk 0:02:56.6]} 3. cxd5 {[%clk 0:02:59.4]} 3... cxd5 {[%clk
0:02:56.2]} 4. Nc3 {[%clk 0:02:59.8]} 4... Nf6 {[%clk 0:02:56.1]} 5. Nf3 {[%clk
0:03:00.4]} 5... Nc6 {[%clk 0:02:55.9]} 6. Bf4 {[%clk 0:03:00.9]} 6... a6 {[%clk
0:02:55.8]} 7. Rc1 {[%clk 0:02:58.9]} 7... e6 {[%clk 0:02:55.8]} 8. e3 {[%clk
0:02:57.4]} 8... Be7 {[%clk 0:02:54.2]} 9. h3 {[%clk 0:02:53.4]} 9... O-O {[%clk
0:02:54.4]} 10. Bd3 {[%clk 0:02:54]} 10... Bd7 {[%clk 0:02:54.2]} 11. O-O {[%clk
0:02:52.8]} 11... Rc8 {[%clk 0:02:54.1]} 12. Na4 {[%clk 0:02:52.2]} 12... Nb4
{[%clk 0:02:53.2]} 13. Rxc8 {[%clk 0:02:44.2]} 13... Qxc8 {[%clk 0:02:54.1]} 14.
Nb6 {[%clk 0:02:37.1]} 14... Qc6 {[%clk 0:02:46.7]} 15. Nxd7 {[%clk 0:02:37.4]}
15... Qxd7 {[%clk 0:02:47.1]} 16. Ne5 {[%clk 0:02:30.5]} 16... Qd8 {[%clk
0:02:30.3]} 17. Bb1 {[%clk 0:02:29.8]} 17... Nc6 {[%clk 0:02:17.6]} 18. Qc2
{[%clk 0:02:09.9]} 18... Nb4 {[%clk 0:01:48.4]} 19. Qb3 {[%clk 0:02:03.1]} 19...
Nd7 {[%clk 0:01:14.6]} 20. Rc1 {[%clk 0:01:42]} 20... Nxe5 {[%clk 0:01:12.7]}
21. Bxe5 {[%clk 0:01:31.5]} 21... Nc6 {[%clk 0:01:06.4]} 22. Qxb7 {[%clk
0:01:11.6]} 22... Nxe5 {[%clk 0:01:06.4]} 23. dxe5 {[%clk 0:01:12.3]} 23... a5
{[%clk 0:01:04.1]} 24. a3 {[%clk 0:00:59.5]} 24... Bh4 {[%clk 0:00:33.2]} 25.
Rc7 {[%clk 0:00:45.5]} 25... Qg5 {[%clk 0:00:26.7]} 26. Rc8 {[%clk 0:00:31.5]}
26... g6 {[%clk 0:00:26.7]} 27. Rxf8+ {[%clk 0:00:29.1]} 27... Kxf8 {[%clk
0:00:26.8]} 28. Qa8+ {[%clk 0:00:28.1]} 28... Qd8 {[%clk 0:00:24.8]} 29. Qxd8+
{[%clk 0:00:23.7]} 29... Bxd8 {[%clk 0:00:25.7]} 30. Kf1 {[%clk 0:00:21.9]}
30... Ke7 {[%clk 0:00:21.9]} 31. Ke2 {[%clk 0:00:21.8]} 31... Kd7 {[%clk
0:00:21.2]} 32. Bc2 {[%clk 0:00:20.6]} 32... Kc7 {[%clk 0:00:20.8]} 33. Ba4
{[%clk 0:00:20.8]} 33... f6 {[%clk 0:00:21.2]} 34. exf6 {[%clk 0:00:20]} 34...
Bxf6 {[%clk 0:00:21]} 35. b4 {[%clk 0:00:20.6]} 35... axb4 {[%clk 0:00:20.5]}
36. axb4 {[%clk 0:00:21.5]} 36... Bc3 {[%clk 0:00:20.7]} 37. b5 {[%clk
0:00:19.7]} 37... Kb6 {[%clk 0:00:21.1]} 38. Kd3 {[%clk 0:00:19.2]} 38... Bf6
{[%clk 0:00:21.2]} 39. f4 {[%clk 0:00:18.7]} 39... Bh4 {[%clk 0:00:21.2]} 40. g4
{[%clk 0:00:17.9]} 40... Bf6 {[%clk 0:00:21.3]} 41. e4 {[%clk 0:00:17]} 41...
dxe4+ {[%clk 0:00:21.4]} 42. Kxe4 {[%clk 0:00:17.9]} 42... Bg7 {[%clk
0:00:21.4]} 43. g5 {[%clk 0:00:16.5]} 43... Bh8 {[%clk 0:00:21.3]} 44. h4 {[%clk
0:00:16.6]} 44... Bg7 {[%clk 0:00:20.9]} 45. Bb3 {[%clk 0:00:16.7]} 45... Kxb5
{[%clk 0:00:21.1]} 46. Bxe6 {[%clk 0:00:17.3]} 46... Kc6 {[%clk 0:00:20.7]} 47.
Bg8 {[%clk 0:00:17.3]} 47... h6 {[%clk 0:00:21.2]} 48. Bh7 {[%clk 0:00:16.4]}
48... Kd6 {[%clk 0:00:20.3]} 49. Bxg6 {[%clk 0:00:15.5]} 49... Ke7 {[%clk
0:00:20.6]} 50. f5 {[%clk 0:00:10.7]} 50... hxg5 {[%clk 0:00:20.5]} 51. hxg5
{[%clk 0:00:11.1]} 51... Bh8 {[%clk 0:00:20.7]} 52. Bh5 {[%clk 0:00:11.4]} 52...
Bg7 {[%clk 0:00:20.9]} 53. Bd1 {[%clk 0:00:11.9]} 53... Bh8 {[%clk 0:00:21.3]}
54. Bb3 {[%clk 0:00:12.5]} 54... Bg7 {[%clk 0:00:21.4]} 55. Kf4 {[%clk 0:00:13]}
55... Bd4 {[%clk 0:00:21.6]} 56. Kg4 {[%clk 0:00:12.9]} 56... Kf8 {[%clk
0:00:20.2]} 57. Bc4 {[%clk 0:00:10.2]} 57... Kg7 {[%clk 0:00:20.4]} 58. Kf4
{[%clk 0:00:09.4]} 58... Bb2 {[%clk 0:00:20]} 59. Bd3 {[%clk 0:00:07.5]} 59...
Bc1+ {[%clk 0:00:20]} 60. Kg4 {[%clk 0:00:07.7]} 60... Bb2 {[%clk 0:00:20.4]}
61. Bc2 {[%clk 0:00:07.1]} 61... Bc3 {[%clk 0:00:20.5]} 62. Bb3 {[%clk
0:00:06.8]} 62... Bb2 {[%clk 0:00:20.6]} 63. Ba4 {[%clk 0:00:06.6]} 63... Bc3
{[%clk 0:00:20.8]} 64. Be8 {[%clk 0:00:07.1]} 64... Bb2 {[%clk 0:00:21.2]} 65.
Bh5 {[%clk 0:00:07.5]} 65... Bc3 {[%clk 0:00:21.6]} 66. Kf3 {[%clk 0:00:08.1]}
66... Bd2 {[%clk 0:00:21.4]} 67. f6+ {[%clk 0:00:07.9]} 67... Kh7 {[%clk
0:00:20.3]} 68. Kg4 {[%clk 0:00:08]} 68... Kg8 {[%clk 0:00:16.4]} 69. Kf5 {[%clk
0:00:08.1]} 69... Bc3 {[%clk 0:00:15.8]} 70. g6 {[%clk 0:00:08.4]} 70... Kf8
{[%clk 0:00:14.9]} 71. Be2 {[%clk 0:00:08.7]} 1-0

[Event "*** Titled Tuesday Blitz"]
[Site "Chess.com"]
[Date "2020.04.28"]
[Round "3"]
[White "Hippotaner"]
[Black "CaspiIsrael"]
[Result "0-1"]
[WhiteElo "2251"]
[BlackElo "2629"]
[TimeControl "180+1"]
[EndTime "10:30:46 PDT"]
[Termination "CaspiIsrael won by resignation"]

1. e4 {[%clk 0:02:57.6]} 1... d5 {[%clk 0:02:58.9]} 2. exd5 {[%clk 0:02:55.7]}
2... Qxd5 {[%clk 0:02:59.8]} 3. Nc3 {[%clk 0:02:55.7]} 3... Qd6 {[%clk
0:02:59.8]} 4. Nf3 {[%clk 0:02:54.4]} 4... Nf6 {[%clk 0:02:59.8]} 5. d4 {[%clk
0:02:54.7]} 5... a6 {[%clk 0:03:00.3]} 6. Ne5 {[%clk 0:02:53]} 6... Nc6 {[%clk
0:02:59.8]} 7. Nxc6 {[%clk 0:02:49.6]} 7... Qxc6 {[%clk 0:03:00.1]} 8. Be3
{[%clk 0:02:46.3]} 8... Bg4 {[%clk 0:02:59.5]} 9. f3 {[%clk 0:02:45.5]} 9... Bf5
{[%clk 0:03:00]} 10. Bd3 {[%clk 0:02:42.4]} 10... Bxd3 {[%clk 0:02:59.7]} 11.
Qxd3 {[%clk 0:02:43.3]} 11... e6 {[%clk 0:03:00.6]} 12. O-O {[%clk 0:02:43.2]}
12... O-O-O {[%clk 0:02:59.8]} 13. Ne4 {[%clk 0:02:41.1]} 13... Nd5 {[%clk
0:02:53.9]} 14. Bd2 {[%clk 0:02:41]} 14... f5 {[%clk 0:02:46.9]} 15. Ng5 {[%clk
0:02:36.5]} 15... Re8 {[%clk 0:02:35.8]} 16. c4 {[%clk 0:02:34.8]} 16... Nb6
{[%clk 0:02:35.8]} 17. b3 {[%clk 0:02:33.4]} 17... h6 {[%clk 0:02:35.7]} 18. Nf7
{[%clk 0:02:33.1]} 18... Rg8 {[%clk 0:02:32.4]} 19. Ne5 {[%clk 0:02:34]} 19...
Qd6 {[%clk 0:02:25.4]} 20. c5 {[%clk 0:02:34.1]} 20... Qd5 {[%clk 0:02:21.2]}
21. cxb6 {[%clk 0:02:34.1]} 21... cxb6 {[%clk 0:02:22.1]} 22. Rfc1+ {[%clk
0:02:32.9]} 22... Kb8 {[%clk 0:02:20.2]} 23. Qc4 {[%clk 0:02:30.8]} 23... Qxc4
{[%clk 0:02:18.8]} 24. Rxc4 {[%clk 0:02:29.7]} 24... Rd8 {[%clk 0:02:14.8]} 25.
Bf4 {[%clk 0:02:17.1]} 25... Ka7 {[%clk 0:02:14.7]} 26. Be3 {[%clk 0:02:13.8]}
26... Rd5 {[%clk 0:02:11.6]} 27. Rac1 {[%clk 0:02:13.4]} 27... Bd6 {[%clk
0:02:10.9]} 28. Nf7 {[%clk 0:02:12.1]} 28... Ba3 {[%clk 0:02:10.7]} 29. R1c2
{[%clk 0:02:09.8]} 29... Rf8 {[%clk 0:02:10.7]} 30. Ne5 {[%clk 0:02:09.6]} 30...
Bd6 {[%clk 0:02:07.1]} 31. Ng6 {[%clk 0:02:05]} 31... Rd8 {[%clk 0:02:04.1]} 32.
Nf4 {[%clk 0:02:02]} 32... Bxf4 {[%clk 0:02:03.3]} 33. Bxf4 {[%clk 0:02:02.9]}
33... Rxd4 {[%clk 0:02:03.6]} 34. Rxd4 {[%clk 0:02:02.6]} 34... Rxd4 {[%clk
0:02:04.5]} 35. Be5 {[%clk 0:02:03.2]} 35... Rd1+ {[%clk 0:02:04.5]} 36. Kf2
{[%clk 0:02:03.5]} 36... g5 {[%clk 0:02:04.6]} 37. g4 {[%clk 0:01:58.6]} 37...
fxg4 {[%clk 0:01:56.9]} 38. fxg4 {[%clk 0:01:58.4]} 38... Rd7 {[%clk 0:01:51.5]}
39. Re2 {[%clk 0:01:51.7]} 39... b5 {[%clk 0:01:42.8]} 40. Bb2 {[%clk
0:01:46.9]} 40... Kb6 {[%clk 0:01:38.7]} 41. Rxe6+ {[%clk 0:01:46.4]} 41... Kc5
{[%clk 0:01:38.4]} 42. Re2 {[%clk 0:01:37.8]} 42... a5 {[%clk 0:01:31.3]} 43.
Rc2+ {[%clk 0:01:33.1]} 43... Kb6 {[%clk 0:01:29.3]} 44. Ke3 {[%clk 0:01:31]}
44... Re7+ {[%clk 0:01:22.2]} 45. Kd3 {[%clk 0:01:30.2]} 45... Rf7 {[%clk
0:01:22.4]} 46. Bd4+ {[%clk 0:01:30.6]} 46... Ka6 {[%clk 0:01:21.4]} 47. Be3
{[%clk 0:01:29.7]} 47... Rf3 {[%clk 0:01:19.1]} 48. Ke2 {[%clk 0:01:22.4]} 48...
Rh3 {[%clk 0:01:16.7]} 49. Bg1 {[%clk 0:01:19.7]} 49... b4 {[%clk 0:01:12.5]}
50. Rc5 {[%clk 0:01:10.6]} 50... Rh4 {[%clk 0:01:07.5]} 51. Rc4 {[%clk
0:01:04.5]} 51... b6 {[%clk 0:00:58.5]} 52. Re4 {[%clk 0:00:57.3]} 52... Kb5
{[%clk 0:00:55.8]} 53. Re5+ {[%clk 0:00:56.5]} 53... Kc6 {[%clk 0:00:54.7]} 54.
Kf3 {[%clk 0:00:51.2]} 54... Rh3+ {[%clk 0:00:54.4]} 55. Kg2 {[%clk 0:00:51.4]}
55... Rd3 {[%clk 0:00:52.8]} 56. Re6+ {[%clk 0:00:51.7]} 56... Kd5 {[%clk
0:00:53]} 57. Rxh6 {[%clk 0:00:42.9]} 57... Rd2+ {[%clk 0:00:53.2]} 58. Bf2
{[%clk 0:00:43.2]} 58... Rxa2 {[%clk 0:00:54.1]} 59. h4 {[%clk 0:00:43.7]} 59...
gxh4 {[%clk 0:00:53.8]} 60. g5 {[%clk 0:00:44.1]} 60... Ke5 {[%clk 0:00:48.4]}
61. Rxb6 {[%clk 0:00:23]} 61... h3+ {[%clk 0:00:43.7]} 62. Kf3 {[%clk
0:00:22.4]} 62... h2 {[%clk 0:00:43.1]} 63. Rh6 {[%clk 0:00:19.8]} 63... Rb2
{[%clk 0:00:42.1]} 64. Rxh2 {[%clk 0:00:19.5]} 64... Kf5 {[%clk 0:00:39.3]} 65.
Rg2 {[%clk 0:00:18.7]} 65... Rxb3+ {[%clk 0:00:38.7]} 66. Be3 {[%clk 0:00:18.9]}
66... Kg6 {[%clk 0:00:38.3]} 67. Kf4 {[%clk 0:00:18.9]} 67... a4 {[%clk
0:00:38.1]} 68. Rc2 {[%clk 0:00:18.7]} 68... Rc3 {[%clk 0:00:34.9]} 69. Rd2
{[%clk 0:00:16]} 69... Rc4+ {[%clk 0:00:31.4]} 70. Bd4 {[%clk 0:00:12]} 70... a3
{[%clk 0:00:29]} 71. Ke5 {[%clk 0:00:09.7]} 71... b3 {[%clk 0:00:28.4]} 72. Kd5
{[%clk 0:00:09.6]} 72... Rxd4+ {[%clk 0:00:27]} 73. Kxd4 {[%clk 0:00:08.9]}
73... b2 {[%clk 0:00:26.1]} 74. Rd1 {[%clk 0:00:01.9]} 74... a2 {[%clk
0:00:25.8]} 0-1